[Event "44th Chess Olympiad Women 2022"]
[Site "Chennai"]
[Date "2022.08.02"]
[Round "5.28"]
[White "Hotami, Mutriba"]
[Black "Ni Mhuireagain, Eibhia"]
[Result "0-1"]
[ECO "B17"]
[WhiteElo "1846"]
[BlackElo "1638"]
[Annotator "NA RC COMBH"]
[PlyCount "112"]
[EventDate "2022.07.29"]
[EventType "team-tourn"]
[EventCountry "IND"]
[SourceTitle "playchess.com"]
[Source "ChessBase"]
[SourceQuality "1"]
[WhiteTeam "Tajikistan"]
[BlackTeam "Ireland"]
[WhiteTeamCountry "TJK"]
[BlackTeamCountry "IRL"]
[TimeControl "40/5400+30:1800+30"]

1. e4 {[%emt 0:00:04]} c6 {[%emt 0:00:05]} 2. d4 {[%emt 0:00:06]} d5 {[%emt 0:00:06]} 3. Nc3 {[%emt 0:00:11]} dxe4 {[%emt 0:00:08]} 4. Nxe4 {[%emt 0:00:07]} Nd7 {[%emt 0:00:08]} 5. Nf3 {[%emt 0:00:25]} Ngf6 {[%emt 0:00:14]} 6. Ng3 {[%emt 0:00:52]} e6 {[%emt 0:03:12]} 7. Bd3 {[%emt 0:01:18]} c5 {[%emt 0:00:36]} 8. O-O {[%emt 0:02:07]} cxd4 {[%emt 0:04:35]} 9. Nxd4 {[%emt 0:00:12]} Bc5 {[%emt 0:00:48]} 10. c3 {[%emt 0:03:29]} O-O {[%emt 0:02:02]} 11. Nb3 {[%emt 0:06:51]} Qc7 {[%emt 0:04:16]} 12. Nxc5 {[%emt 0:00:53]} Nxc5 {[%emt 0:01:26]} 13. Bc2 {[%emt 0:01:38]} Qc6 {[%emt 0:08:38]} 14. Bf4 {[%emt 0:09:50]} b6 {[%emt 0:04:44]} 15. Qd6 {[%emt 0:25:04]} Bb7 {[%emt 0:02:19]} 16. Qxc6 {[%emt 0:00:17]} Bxc6 {[%emt 0:00:05]} 17. Rfd1 {[%emt 0:01:50]} Rfd8 {[%emt 0:01:49]} 18. Ne2 {[%emt 0:05:39]} h6 {[%emt 0:05:04]} 19. Nd4 {[%emt 0:00:56]} Be4 {[%emt 0:04:00]} 20. Bxe4 {[%emt 0:03:36]} Nfxe4 {[%emt 0:01:15]} 21. f3 {[%emt 0:00:41]} Nf6 {[%emt 0:01:00]} 22. Nc6 {[%emt 0:04:08]} Rd7 {[%emt 0:02:33]} 23. Rxd7 {[%emt 0:03:00]} Ncxd7 {[%emt 0:04:36]} 24. a4 {[%emt 0:03:27]} Nd5 {[%emt 0:03:49]} 25. Bg3 {[%emt 0:03:07]} a6 {[%emt 0:07:00]} 26. a5 {[%emt 0:01:39]} b5 {[%emt 0:03:11]} 27. Rd1 {[%emt 0:01:14]} Kh7 {[%emt 0:03:52]} 28. Ne5 {[%emt 0:04:07]} Nxe5 {[%emt 0:00:46]} 29. Bxe5 {[%emt 0:00:01]} Rc8 {[%emt 0:01:02]} 30. Rc1 {[%emt 0:10:27]} Ne3 {[%emt 0:06:00]} 31. Bd4 {[%emt 0:01:20]} Nc4 {[%emt 0:00:37]} 32. b4 {[%emt 0:00:19]} Rd8 {[%emt 0:01:20]} 33. Kf2 {[%emt 0:01:59]} e5 {[%emt 0:01:25]} 34. Be3 {[%emt 0:00:36]} f5 {[%emt 0:01:20]} 35. g3 {[%emt 0:00:24]} Rd3 {[%emt 0:01:04]} 36. Bc5 {[%emt 0:01:18]} Rd2+ {[%emt 0:02:10]} 37. Kg1 {[%emt 0:00:34]} Nb2 {[%emt 0:05:19]} 38. Rf1 {[%emt 0:03:30]} Rc2 {[%emt 0:02:28]} 39. f4 {[%emt 0:00:39]} e4 {[%emt 0:02:00]} 40. Bd4 {[%emt 0:01:12]} Na4 {[%emt 0:07:32]} 41. Rf2 {[%emt 0:30:42]} Rc1+ {[%emt 0:33:57]} 42. Kg2 {[%emt 0:00:00]} Nxc3 {[%emt 0:00:00]} 43. Rd2 {[%emt 0:00:00]} Nb1 {[%emt 0:00:00]} 44. Re2 {[%emt 0:00:00]} Rd1 {[%emt 0:00:00]} 45. Bc5 {[%emt 0:00:00]} Rd2 {[%emt 0:00:00]} 46. Kf2 {[%emt 0:00:23]} Rxe2+ {[%emt 0:00:00]} 47. Kxe2 {[%emt 0:00:05]} Kg6 {[%emt 0:00:00]} 48. Ke3 {[%emt 0:00:13]} Kf7 {[%emt 0:00:00]} 49. g4 {[%emt 0:01:49]} g6 {[%emt 0:00:00]} 50. gxf5 {[%emt 0:01:12]} gxf5 {[%emt 0:00:00]} 51. Bb6 {[%emt 0:01:54]} Na3 {[%emt 0:00:00]} 52. Bc5 {[%emt 0:00:32]} Nc4+ {[%emt 0:00:00]} 53. Kd4 {[%emt 0:00:13]} Ke6 {[%emt 0:00:00]} 54. Bf8 {[%emt 0:00:19]} h5 {[%emt 0:00:00]} 55. Bh6 {[%emt 0:00:30]} Nd2 {[%emt 0:00:00]} 56. Kc5 {[%emt 0:00:55]} e3 {[%emt 0:00:00]} 0-1

[Event "44th Chess Olympiad Women 2022"]
[Site "Chennai"]
[Date "2022.08.02"]
[Round "5.28"]
[White "Abrorova, Sabrina"]
[Black "O`Gorman, Alice"]
[Result "0-1"]
[ECO "D31"]
[WhiteElo "1799"]
[BlackElo "2043"]
[Annotator "NA RC"]
[PlyCount "94"]
[EventDate "2022.07.29"]
[EventType "team-tourn"]
[EventCountry "IND"]
[SourceTitle "playchess.com"]
[Source "ChessBase"]
[SourceQuality "1"]
[WhiteTeam "Tajikistan"]
[BlackTeam "Ireland"]
[WhiteTeamCountry "TJK"]
[BlackTeamCountry "IRL"]
[TimeControl "40/5400+30:1800+30"]

1. d4 {[%emt 0:00:18]} d5 {[%emt 0:00:04]} 2. c4 {[%emt 0:00:20]} e6 {[%emt 0:00:04]} 3. Nf3 {[%emt 0:00:23]} c6 {[%emt 0:00:06]} 4. Nc3 {[%emt 0:00:54]} dxc4 {[%emt 0:00:05]} 5. a4 {[%emt 0:01:05]} Bb4 {[%emt 0:00:19]} 6. e3 {[%emt 0:03:42]} b5 {[%emt 0:00:10]} 7. Bd2 {[%emt 0:05:22]} a5 {[%emt 0:00:04]} 8. axb5 {[%emt 0:08:38]} Bxc3 {[%emt 0:01:52]} 9. Bxc3 {[%emt 0:00:22]} cxb5 {[%emt 0:00:04]} 10. b3 {[%emt 0:15:34]} Bb7 {[%emt 0:00:05]} 11. bxc4 {[%emt 0:01:07]} b4 {[%emt 0:00:06]} 12. Bb2 {[%emt 0:00:18]} Nf6 {[%emt 0:00:09]} 13. Be2 {[%emt 0:02:34]} O-O {[%emt 0:00:07]} 14. O-O {[%emt 0:04:27]} Nbd7 {[%emt 0:01:14]} 15. Nd2 {[%emt 0:05:59]} Qc7 {[%emt 0:02:21]} 16. Qb3 {[%emt 0:12:09]} Rfb8 {[%emt 0:03:59]} 17. Bf3 {[%emt 0:13:30]} Bxf3 {[%emt 0:02:01]} 18. Nxf3 {[%emt 0:02:39]} Qc6 {[%emt 0:01:35]} 19. Qd3 {[%emt 0:11:48]} a4 {[%emt 0:03:25]} 20. Nd2 {[%emt 0:00:34]} Rd8 {[%emt 0:04:51]} 21. Qe2 {[%emt 0:01:56]} Ne4 {[%emt 0:10:48]} 22. Nxe4 {[%emt 0:06:56]} Qxe4 {[%emt 0:00:09]} 23. Rfb1 {[%emt 0:00:33]} Nb6 {[%emt 0:03:53]} 24. Ba3 {[%emt 0:00:45]} b3 {[%emt 0:02:08]} 25. f3 {[%emt 0:00:01]} Qc6 {[%emt 0:03:27]} 26. Rc1 {[%emt 0:00:03]} Rac8 {[%emt 0:03:48]} 27. c5 {[%emt 0:00:27]} Nd5 {[%emt 0:01:31]} 28. e4 {[%emt 0:00:15]} Nc7 {[%emt 0:00:38]} 29. Bb2 {[%emt 0:00:15]} Ra8 {[%emt 0:01:34]} 30. Qc4 {[%emt 0:01:29]} h6 {[%emt 0:07:41]} 31. Ra3 {[%emt 0:01:00]} Ra7 {[%emt 0:01:33]} 32. Raa1 {[%emt 0:00:33]} Rda8 {[%emt 0:02:40]} 33. Ba3 {[%emt 0:00:28]} Rb8 {[%emt 0:10:50]} 34. Rcb1 {[%emt 0:00:34]} f5 {[%emt 0:06:13]} 35. exf5 {[%emt 0:00:28]} Qd5 {[%emt 0:00:49]} 36. Qd3 {[%emt 0:00:31]} Nb5 {[%emt 0:01:03]} 37. Rd1 {[%emt 0:00:29]} exf5 {[%emt 0:01:18]} 38. h3 {[%emt 0:00:30]} Nxa3 {[%emt 0:07:42]} 39. Rxa3 {[%emt 0:00:01]} Rb4 {[%emt 0:01:23]} 40. Rb1 {[%emt 0:01:01]} Qxd4+ {[%emt 0:06:20]} 41. Qxd4 {[%emt 0:30:02]} Rxd4 {[%emt 0:30:11]} 42. Kh2 {[%emt 0:00:00]} Rb4 {[%emt 0:00:00]} 43. Kg3 {[%emt 0:00:00]} Rc7 {[%emt 0:00:00]} 44. Rba1 {[%emt 0:00:00]} b2 {[%emt 0:00:00]} 45. Rb1 {[%emt 0:00:00]} Rxc5 {[%emt 0:00:00]} 46. Ra2 {[%emt 0:00:00]} a3 {[%emt 0:00:00]} 47. Rxa3 {[%emt 0:00:00]} Rc1 {[%emt 0:00:00]} 0-1

[Event "44th Chess Olympiad Women 2022"]
[Site "Chennai"]
[Date "2022.08.02"]
[Round "5.29"]
[White "Azhar, Puteri Rifqah Fahada"]
[Black "Van Zyl, Charlize"]
[Result "1-0"]
[ECO "D02"]
[WhiteElo "1940"]
[BlackElo "1704"]
[Annotator "NA RC"]
[PlyCount "149"]
[EventDate "2022.07.29"]
[EventType "team-tourn"]
[EventCountry "IND"]
[SourceTitle "playchess.com"]
[Source "ChessBase"]
[SourceQuality "1"]
[WhiteTeam "Malaysia"]
[BlackTeam "South Africa"]
[WhiteTeamCountry "MAS"]
[BlackTeamCountry "RSA"]
[TimeControl "40/5400+30:1800+30"]

1. d4 {[%emt 0:00:15]} d5 {[%emt 0:00:06]} 2. Nf3 {[%emt 0:00:08]} Nf6 {[%emt 0:00:06]} 3. Bf4 {[%emt 0:00:19]} c5 {[%emt 0:00:18]} 4. e3 {[%emt 0:01:32]} Nc6 {[%emt 0:00:16]} 5. c3 {[%emt 0:00:11]} Qb6 {[%emt 0:00:40]} 6. Qb3 {[%emt 0:01:27]} c4 {[%emt 0:00:15]} 7. Qxb6 {[%emt 0:00:31]} axb6 {[%emt 0:00:06]} 8. Na3 {[%emt 0:01:12]} Bf5 {[%emt 0:01:06]} 9. Nh4 {[%emt 0:05:41]} Bg6 {[%emt 0:02:41]} 10. Nxg6 {[%emt 0:02:50]} hxg6 {[%emt 0:00:06]} 11. Bc7 {[%emt 0:01:49]} e6 {[%emt 0:13:55]} 12. Nb5 {[%emt 0:07:29]} Ra6 {[%emt 0:00:41]} 13. Be2 {[%emt 0:05:18]} Kd7 {[%emt 0:01:09]} 14. a4 {[%emt 0:06:40]} Ne4 {[%emt 0:08:09]} 15. f3 {[%emt 0:01:39]} Nd6 {[%emt 0:00:42]} 16. Bxd6 {[%emt 0:05:59]} Bxd6 {[%emt 0:00:05]} 17. Nxd6 {[%emt 0:01:11]} Kxd6 {[%emt 0:00:05]} 18. b3 {[%emt 0:00:33]} b5 {[%emt 0:04:09]} 19. Kf2 {[%emt 0:02:23]} Rha8 {[%emt 0:03:08]} 20. Rab1 {[%emt 0:01:20]} bxa4 {[%emt 0:12:29]} 21. bxc4 {[%emt 0:04:46]} R6a7 {[%emt 0:00:29]} 22. cxd5 {[%emt 0:03:33]} exd5 {[%emt 0:00:09]} 23. Rb5 {[%emt 0:00:23]} Na5 {[%emt 0:06:30]} 24. Ra1 {[%emt 0:03:29]} Nb3 {[%emt 0:02:31]} 25. Ra3 {[%emt 0:00:20]} Kc6 {[%emt 0:10:10]} 26. e4 {[%emt 0:05:44]} dxe4 {[%emt 0:06:33]} 27. fxe4 {[%emt 0:00:14]} Ra5 {[%emt 0:01:10]} 28. Rb4 {[%emt 0:11:15]} b5 {[%emt 0:01:36]} 29. Ke3 {[%emt 0:01:04]} Kb6 {[%emt 0:09:11]} 30. Bd1 {[%emt 0:06:15]} Rc8 {[%emt 0:03:50]} 31. Kd3 {[%emt 0:00:31]} Rh8 {[%emt 0:06:37]} 32. Bxb3 {[%emt 0:02:22]} axb3 {[%emt 0:00:16]} 33. Rxa5 {[%emt 0:00:08]} Kxa5 {[%emt 0:00:06]} 34. h3 {[%emt 0:00:08]} g5 {[%emt 0:02:02]} 35. Rxb3 {[%emt 0:00:33]} g4 {[%emt 0:00:08]} 36. hxg4 {[%emt 0:00:14]} Rh4 {[%emt 0:00:06]} 37. d5 {[%emt 0:01:55]} Rxg4 {[%emt 0:00:12]} 38. Rb2 {[%emt 0:00:47]} Rh4 {[%emt 0:03:35]} 39. Rf2 {[%emt 0:06:02]} f6 {[%emt 0:00:31]} 40. Ke3 {[%emt 0:02:47]} Kb6 {[%emt 0:02:00]} 41. Kd4 {[%emt 0:30:36]} Kc7 {[%emt 0:03:07]} 42. c4 {[%emt 0:00:00]} bxc4 {[%emt 0:00:26]} 43. Rc2 {[%emt 0:00:00]} Kd6 {[%emt 0:06:42]} 44. Rxc4 {[%emt 0:00:00]} Rg4 {[%emt 0:00:57]} 45. Rc6+ {[%emt 0:00:00]} Kd7 {[%emt 0:00:13]} 46. Rc2 {[%emt 0:00:00]} f5 {[%emt 0:00:22]} 47. Ke5 {[%emt 0:00:00]} fxe4 {[%emt 0:00:13]} 48. Kf5 {[%emt 0:00:00]} Rg3 {[%emt 0:03:20]} 49. Kf4 {[%emt 0:00:00]} Rd3 {[%emt 0:02:43]} 50. Kxe4 {[%emt 0:00:41]} Rd1 {[%emt 0:00:29]} 51. Ke5 {[%emt 0:00:00]} Re1+ {[%emt 0:00:39]} 52. Kf5 {[%emt 0:00:00]} Rd1 {[%emt 0:08:42]} 53. g4 {[%emt 0:00:00]} Rxd5+ {[%emt 0:00:15]} 54. Kg6 {[%emt 0:00:00]} Ke7 {[%emt 0:03:26]} 55. Rc7+ {[%emt 0:00:00]} Kf8 {[%emt 0:00:17]} 56. Rc8+ {[%emt 0:00:00]} Ke7 {[%emt 0:00:10]} 57. g5 {[%emt 0:00:00]} Rb5 {[%emt 0:02:06]} 58. Rg8 {[%emt 0:00:00]} Rb1 {[%emt 0:00:31]} 59. Kxg7 {[%emt 0:00:00]} Rg1 {[%emt 0:00:33]} 60. g6 {[%emt 0:00:00]} Rg2 {[%emt 0:00:53]} 61. Ra8 {[%emt 0:00:00]} Rg1 {[%emt 0:00:31]} 62. Ra3 {[%emt 0:00:00]} Rh1 {[%emt 0:01:38]} 63. Re3+ {[%emt 0:00:00]} Kd7 {[%emt 0:00:05]} 64. Kg8 {[%emt 0:00:00]} Rh2 {[%emt 0:00:29]} 65. g7 {[%emt 0:00:51]} Rh1 {[%emt 0:00:36]} 66. Re5 {[%emt 0:00:27]} Kd6 {[%emt 0:01:10]} 67. Re3 {[%emt 0:01:02]} Kd7 {[%emt 0:00:25]} 68. Rf3 {[%emt 0:00:13]} Ke7 {[%emt 0:00:16]} 69. Ra3 {[%emt 0:00:18]} Rh2 {[%emt 0:00:58]} 70. Ra4 {[%emt 0:00:33]} Rh1 {[%emt 0:01:07]} 71. Re4+ {[%emt 0:00:13]} Kd7 {[%emt 0:00:26]} 72. Kf7 {[%emt 0:00:18]} Rf1+ {[%emt 0:00:14]} 73. Kg6 {[%emt 0:00:06]} Rg1+ {[%emt 0:00:16]} 74. Kf6 {[%emt 0:00:10]} Kd8 {[%emt 0:01:11]} 75. Re5 {[%emt 0:00:14]} 1-0

[Event "44th Chess Olympiad Women 2022"]
[Site "Chennai"]
[Date "2022.08.02"]
[Round "5.29"]
[White "Chong, Kai Ni Agnes"]
[Black "Bouah, Denise"]
[Result "0-1"]
[ECO "D76"]
[WhiteElo "1909"]
[BlackElo "1736"]
[Annotator "TA"]
[PlyCount "130"]
[EventDate "2022.07.29"]
[EventType "team-tourn"]
[EventCountry "IND"]
[SourceTitle "playchess.com"]
[Source "ChessBase"]
[SourceQuality "1"]
[WhiteTeam "Malaysia"]
[BlackTeam "South Africa"]
[WhiteTeamCountry "MAS"]
[BlackTeamCountry "RSA"]
[TimeControl "40/5400+30:1800+30"]

{[%evp 17,130,12,11,14,45,45,47,42,39,0,0,-45,-20,-25,-35,-26,-42,-42,-35,-33,-12,-149,15,0,0,0,0,0,0,0,0,-7,-5,-16,-24,-65,-54,-111,-103,-126,-101,-98,-75,-72,-72,-75,-75,-85,-74,-96,-85,-86,-85,-489,-486,-482,-471,-29965,-183,-161,0,-29961,-123,-305,-8,-8,-8,-8,-8,-8,-8,-8,-8,-8,-8,-8,-8,-8,-13,-29967,-29968,-29968,-29969,-29968,-29970,-29969,-29970,-29970,-29969,-29972,-29973,-29973,-29974,-29974,-29975,-29975,-29976,-29975,-29977,-29977,-29978,-29977,-29979,-29978,-29980,-29981,-29982,-29982,-29983,-29983,-29984,-29986,-29982,-29987,-29987]} 1. d4 {[%emt 0:00:03]} Nf6 {[%emt 0:00:08]} 2. c4 {[%emt 0:00:09]} g6 {[%emt 0:00:05]} 3. Nf3 {[%emt 0:00:09]} Bg7 {[%emt 0:00:07]} 4. g3 {[%emt 0:00:07]} d5 {[%emt 0:00:18]} 5. cxd5 {[%emt 0:00:18]} Nxd5 {[%emt 0:00:06]} 6. Nc3 {[%emt 0:00:15]} Nb6 {[%emt 0:00:09]} 7. e3 {[%emt 0:00:14]} O-O {[%emt 0:00:53]} 8. Bg2 {[%emt 0:00:12]} Nc6 {[%emt 0:00:17]} 9. O-O {[%emt 0:00:11]} Re8 {[%emt 0:00:20]} 10. Nh4 {[%emt 0:00:41] D76: Fianchetto Grünfeld: Main Line with 7...Nb6.} a5 {[%emt 0:03:22]} (10... e5 $5 {[%cal Re5d4]}) 11. f4 $1 {[%emt 0:02:26]} e6 {[%emt 0:07:48]} 12. Nf3 {[%emt 0:06:54] White is slightly better.} a4 {[%emt 0:07:57]} 13. Ne4 {[%emt 0:07:21] [#]} f6 $146 {[%emt 0:11:02]} ({Predecessor:} 13... Bd7 14. Nc5 Na5 15. Ne5 Bb5 16. Rf2 Qc8 17. Bd2 c6 18. b3 f6 19. Nf3 Nd7 20. bxa4 Nxc5 21. dxc5 {1-0 (48) Kovacs,J (2042)-Rozman,M (2194) Balatonszarszo 2017}) 14. Nc5 {[%emt 0:12:02]} e5 {[%emt 0:08:20]} 15. dxe5 {[%emt 0:07:10]} (15. fxe5 {feels hotter.} fxe5 16. Nxe5 Nxe5 17. dxe5 Qxd1 18. Rxd1 Bxe5 19. Rb1) 15... fxe5 {[%emt 0:01:32]} (15... Qxd1 {is interesting.} 16. Rxd1 fxe5 17. fxe5 Nxe5 18. Nxe5 Bxe5 19. Rb1 Bf5) 16. fxe5 {[%emt 0:06:12]} Nxe5 {[%emt 0:14:55]} (16... Qxd1 {looks sharper.} 17. Rxd1 Nxe5 18. Nxe5 Bxe5 19. Rb1 Bf5) 17. Nxe5 {[%emt 0:02:17]} Qxd1 {[%emt 0:01:19]} 18. Rxd1 {[%emt 0:00:07]} Bxe5 {[%emt 0:01:05]} 19. Nxb7 {[%emt 0:03:07]} (19. Rb1 $1 $11) 19... Ra7 $2 {[%emt 0:07:31]} (19... a3 $1 $17 {[%cal Ra3b2]} 20. Rb1 Bf5) 20. Nc5 {[%emt 0:05:57]} a3 {[%emt 0:02:31]} 21. Rb1 {[%emt 0:01:08]} axb2 {[%emt 0:03:47]} 22. Bxb2 {[%emt 0:00:20]} Rxa2 {[%emt 0:02:42]} 23. Bxe5 {[%emt 0:02:52]} Rxe5 {[%emt 0:00:22]} 24. Nd3 {[%emt 0:06:40]} Rxe3 {[%emt 0:02:14]} 25. Nf4 {[%emt 0:02:37][%cal Ob1b6] Rxb6! is the strong threat.} Rc2 {[%emt 0:02:43]} 26. Rb4 {[%emt 0:11:38]} Bf5 {[%emt 0:05:43]} 27. Nd5 {[%emt 0:04:49] [#]} ({Better is} 27. Rbb1 $15) 27... Nxd5 $1 $17 {[%emt 0:06:28]} 28. Bxd5+ {[%emt 0:00:08]} Kg7 {[%emt 0:00:13]} 29. g4 {[%emt 0:05:52]} Be6 {[%emt 0:02:13]} 30. Bxe6 {[%emt 0:02:17]} Rxe6 {[%emt 0:00:04][%mdl 4096] Endgame KRR-KRR} 31. g5 {[%emt 0:00:11]} Re7 {[%emt 0:01:58] Against Rd7} 32. h4 {[%emt 0:02:35]} h6 {[%emt 0:00:15]} 33. Rg4 {[%emt 0:01:44]} hxg5 {[%emt 0:00:52]} 34. Rxg5 {[%emt 0:00:58] [#]} Kh6 $1 {[%emt 0:00:20] Against h5. Strongly threatening ...c5.} 35. Rgd5 {[%emt 0:01:18][%mdl 8192]} (35. Rf1 $17 {is more resistant.}) 35... c5 $19 {[%emt 0:01:38]} 36. Rf1 {[%emt 0:03:41]} Ree2 {[%emt 0:00:58] Prevents Rf2.} 37. Rf4 {[%emt 0:00:58]} (37. Rf8 $19 Rg2+ 38. Kf1) 37... Rc1+ $2 {[%emt 0:02:07]} (37... c4 38. h5 c3 39. hxg6 Re1+ 40. Rf1 Rcc1 41. Rxe1 Rxe1+ 42. Kf2 c2 43. Kxe1 c1=Q+ 44. Ke2 Qc4+ 45. Rd3 Kxg6 46. Kd2 Kf5 47. Rc3 Qd5+ 48. Rd3 Qa5+ 49. Ke2 Qc5 50. Kd2 Ke4 51. Rb3 Qf2+ 52. Kc3 Qe3+ 53. Kc2 Qe2+ 54. Kc3 Qd3+ 55. Kb4 Qd2+ 56. Kb5 Qd5+ 57. Ka4 Qa8+ 58. Kb4 Kd4 59. Rh3 Qb7+ 60. Ka3 Qa6+ 61. Kb2 Qe2+ 62. Ka3 Kc4 63. Rh4+ Kc3 64. Rh3+ Kc2 65. Rg3 Qe7+ 66. Ka4 Qh4+ 67. Ka5 Qxg3 68. Kb6 Qd6+ 69. Kb7 Kc3 70. Ka7 Kc4 71. Kb7 Qd7+ 72. Kb6 Kb4 73. Ka6 Kc5 74. Ka5 Qb5#) 38. Rf1 {[%emt 0:00:06]} Rcc2 {[%emt 0:02:06]} (38... Rc3 $19 39. Rf2 Re4) 39. Rf4 $1 {[%emt 0:00:16]} Re1+ $2 {[%emt 0:00:05]} (39... c4 {mates} 40. h5 c3 41. hxg6 Re1+ 42. Rf1 Rcc1 43. Rxe1 Rxe1+ 44. Kf2 Rh1 45. Rd8 Kxg6 46. Rc8 c2 47. Rc6+ Kf7 48. Rxc2 Rh2+ 49. Kf3 Rxc2 50. Ke3 Ke6 51. Kd3 Rg2 52. Ke4 Rg4+ 53. Kf3 Rd4 54. Kf2 Kf5 55. Ke3 Rd7 56. Kf2 Kf4 57. Ke2 Rd4 58. Kf2 Rd2+ 59. Ke1 Ke3 60. Kf1 Kf3 61. Kg1 Rd1+ 62. Kh2 Rf1 63. Kh3 Rh1#) 40. Rf1 {[%emt 0:00:05]} Rxf1+ {[%emt 0:00:31]} ({Black should try} 40... Re4 $19 {Hoping for ...Rg4+.} 41. Rf2 Rc1+ 42. Kg2 Rxh4) 41. Kxf1 {[%emt 0:30:05] KR-KR} c4 {[%emt 0:30:14] aiming for ...Rh2.} 42. Rc5 {[%emt 0:01:32]} c3 {[%emt 0:00:00]} 43. Ke1 {[%emt 0:00:00]} Rc1+ {[%emt 0:00:00]} 44. Ke2 {[%emt 0:00:00]} c2 {[%emt 0:00:00]} 45. Kd2 {[%emt 0:00:00]} Rh1 {[%emt 0:00:00]} 46. Kxc2 {[%emt 0:00:00]} Rxh4 {[%emt 0:00:00]} 47. Kd2 {[%emt 0:00:00]} Re4 {[%emt 0:00:00] ( -> ...g5)} 48. Rd5 {[%emt 0:00:00][%mdl 8192] White is now going downhill.} (48. Rc1 $11) 48... g5 {[%emt 0:00:00][%cal Bg6g5,Bg5g4,Bg4g3,Bg3g2][%mdl 32] Black mates.} 49. Rd8 {[%emt 0:00:00]} Kh5 {[%emt 0:00:00]} 50. Rh8+ {[%emt 0:00:00]} Kg4 {[%emt 0:00:00]} 51. Rg8 {[%emt 0:00:00]} Kh4 {[%emt 0:00:00]} 52. Kd3 {[%emt 0:00:00]} Re6 {[%emt 0:00:00]} 53. Rg7 {[%emt 0:00:00]} g4 {[%emt 0:00:00]} 54. Rh7+ {[%emt 0:00:00]} Kg3 {[%emt 0:00:00]} 55. Rg7 {[%emt 0:00:00]} Kf3 {[%emt 0:00:00]} 56. Rf7+ {[%emt 0:00:00]} Kg2 {[%emt 0:00:00]} 57. Rg7 {[%emt 0:00:00]} g3 {[%emt 0:00:00]} 58. Rg8 {[%emt 0:00:00]} Kf2 {[%emt 0:00:00]} 59. Rf8+ {[%emt 0:00:00]} Kg1 {[%emt 0:00:00]} 60. Rg8 {[%emt 0:00:00]} g2 {[%emt 0:00:00]} 61. Rg5 {[%emt 0:00:00]} Kf2 {[%emt 0:00:00]} 62. Rf5+ {[%emt 0:00:00]} Kg3 {[%emt 0:00:00]} 63. Rg5+ {[%emt 0:00:00]} Kf3 {[%emt 0:00:00]} 64. Rg8 {[%emt 0:00:00]} Rd6+ {[%emt 0:00:00]} 65. Kc2 {[%emt 0:00:00]} Rf6 {[%emt 0:00:00] Weighted Error Value: White=0.40/Black=0.40} 0-1

[Event "44th Chess Olympiad Women 2022"]
[Site "Chennai"]
[Date "2022.08.02"]
[Round "5.29"]
[White "February, Jesse Nikki"]
[Black "Foudzi, Siti Zulaikha"]
[Result "0-1"]
[ECO "B08"]
[WhiteElo "1872"]
[BlackElo "2188"]
[Annotator "NA RC"]
[PlyCount "106"]
[EventDate "2022.07.29"]
[EventType "team-tourn"]
[EventCountry "IND"]
[SourceTitle "playchess.com"]
[Source "ChessBase"]
[SourceQuality "1"]
[WhiteTeam "South Africa"]
[BlackTeam "Malaysia"]
[WhiteTeamCountry "RSA"]
[BlackTeamCountry "MAS"]
[TimeControl "40/5400+30:1800+30"]

1. e4 {[%emt 0:00:05]} g6 {[%emt 0:00:06]} 2. d4 {[%emt 0:00:19]} Bg7 {[%emt 0:00:05]} 3. Nf3 {[%emt 0:00:23]} d6 {[%emt 0:00:07]} 4. Nc3 {[%emt 0:00:50]} Nf6 {[%emt 0:00:11]} 5. Bc4 {[%emt 0:00:50]} c6 {[%emt 0:00:18]} 6. a4 {[%emt 0:00:34]} b6 {[%emt 0:00:53]} 7. h3 {[%emt 0:02:11]} O-O {[%emt 0:00:13]} 8. O-O {[%emt 0:00:57]} Nxe4 {[%emt 0:05:06]} 9. Nxe4 {[%emt 0:04:35]} d5 {[%emt 0:00:04]} 10. Bd3 {[%emt 0:00:27]} dxe4 {[%emt 0:00:07]} 11. Bxe4 {[%emt 0:00:08]} Bb7 {[%emt 0:00:34]} 12. c3 {[%emt 0:01:17]} Nd7 {[%emt 0:00:49]} 13. Bf4 {[%emt 0:01:32]} Nf6 {[%emt 0:00:29]} 14. Bd3 {[%emt 0:01:53]} a6 {[%emt 0:00:39]} 15. Re1 {[%emt 0:02:47]} Nd5 {[%emt 0:08:30]} 16. Be5 {[%emt 0:03:39]} Bh6 {[%emt 0:00:50]} 17. Re4 {[%emt 0:07:11]} f6 {[%emt 0:09:57]} 18. Rh4 {[%emt 0:05:30]} Bg7 {[%emt 0:01:22]} 19. Bg3 {[%emt 0:01:09]} e6 {[%emt 0:09:28]} 20. Qc2 {[%emt 0:10:28]} f5 {[%emt 0:03:15]} 21. Qe2 {[%emt 0:04:38]} Qe7 {[%emt 0:04:22]} 22. Be5 {[%emt 0:00:56]} Rae8 {[%emt 0:11:23]} 23. Re1 {[%emt 0:05:50]} h6 {[%emt 0:02:57]} 24. Bc4 {[%emt 0:10:13]} b5 {[%emt 0:12:20]} 25. Bxg7 {[%emt 0:05:27]} Kxg7 {[%emt 0:05:29]} 26. Bxd5 {[%emt 0:01:05]} cxd5 {[%emt 0:00:05]} 27. axb5 {[%emt 0:01:50]} axb5 {[%emt 0:00:07]} 28. Qxb5 {[%emt 0:08:22]} Bc8 {[%emt 0:00:52]} 29. Qe2 {[%emt 0:01:07]} Qf6 {[%emt 0:03:45]} 30. g3 {[%emt 0:01:54]} Re7 {[%emt 0:03:03]} 31. Ne5 {[%emt 0:00:46]} Rc7 {[%emt 0:06:11]} 32. Rf4 {[%emt 0:00:51]} Rd8 {[%emt 0:00:50]} 33. Rf3 {[%emt 0:01:12]} Rd6 {[%emt 0:00:16]} 34. Qd2 {[%emt 0:01:41]} Ra7 {[%emt 0:03:07]} 35. h4 {[%emt 0:00:41]} g5 {[%emt 0:02:25]} 36. hxg5 {[%emt 0:03:37]} Qxg5 {[%emt 0:00:26]} 37. Qxg5+ {[%emt 0:01:00]} hxg5 {[%emt 0:00:06]} 38. g4 {[%emt 0:00:25]} Ra2 {[%emt 0:04:16]} 39. b4 {[%emt 0:01:16]} Rda6 {[%emt 0:01:51]} 40. Rh3 {[%emt 0:04:26]} fxg4 {[%emt 0:00:18]} 41. Rh5 {[%emt 0:30:42]} Kf6 {[%emt 0:32:24]} 42. Rh8 {[%emt 0:02:48]} Ra1 {[%emt 0:01:07]} 43. Rxa1 {[%emt 0:00:00]} Rxa1+ {[%emt 0:00:00]} 44. Kh2 {[%emt 0:00:00]} Ba6 {[%emt 0:00:00]} 45. Nxg4+ {[%emt 0:00:00]} Kf5 {[%emt 0:00:00]} 46. Ne3+ {[%emt 0:00:00]} Ke4 {[%emt 0:00:00]} 47. Re8 {[%emt 0:00:00]} Kf3 {[%emt 0:00:00]} 48. Rxe6 {[%emt 0:00:00]} Kxf2 {[%emt 0:00:00]} 49. Nxd5 {[%emt 0:00:00]} Be2 {[%emt 0:00:00]} 50. Nf6 {[%emt 0:00:00]} Bf3 {[%emt 0:00:00]} 51. Ne4+ {[%emt 0:00:00]} Bxe4 {[%emt 0:00:00]} 52. Rxe4 {[%emt 0:00:00]} Ra8 {[%emt 0:00:00]} 53. Kh3 {[%emt 0:00:00]} Kf3 {[%emt 0:00:00]} 0-1